[Event "Championnat du monde jeunes U10"]
[Date "2024.11.26"]
[White "Llari, Marc"]
[Black "Sameh Mohamed, Abdalrahman"]
[WhiteElo "2201"]
[BlackElo "2238"]
[Round "11.2"]
[Result "1-0"]
[TimeControl "5400+30"]

1. d4 {[%clk 1:30:59]} 1... d5 {[%clk 1:30:53]} 2. c4 {[%clk 1:31:25]} 2... c6
{[%clk 1:31:21]} 3. Nf3 {[%clk 1:31:49]} 3... Nf6 {[%clk 1:31:45]} 4. g3 {[%clk
1:32:14]} 4... a6 {[%clk 1:32:10]} 5. Bg2 {[%clk 1:32:30]} 5... Bf5 {[%clk
1:32:34]} 6. Nc3 {[%clk 1:31:16]} 6... e6 {[%clk 1:32:58]} 7. Nh4 {[%clk
1:31:18]} 7... Bg6 {[%clk 1:31:55]} 8. Nxg6 {[%clk 1:30:01]} 8... hxg6 {[%clk
1:32:18]} 9. Qd3 {[%clk 1:29:08]} 9... Nbd7 {[%clk 1:32:12]} 10. O-O {[%clk
1:27:51]} 10... Be7 {[%clk 1:32:32]} 11. Rd1 {[%clk 1:26:29]} 11... O-O {[%clk
1:31:40]} 12. e4 {[%clk 1:26:32]} 12... dxe4 {[%clk 1:32:02]} 13. Nxe4 {[%clk
1:26:50]} 13... Nxe4 {[%clk 1:32:26]} 14. Qxe4 {[%clk 1:26:23]} 14... Nf6 {[%clk
1:32:50]} 15. Qe2 {[%clk 1:26:45]} 15... Qc7 {[%clk 1:28:17]} 16. Be3 {[%clk
1:22:00]} 16... Rad8 {[%clk 1:28:30]} 17. b3 {[%clk 1:20:06]} 17... Rd7 {[%clk
1:19:13]} 18. Rd3 {[%clk 1:18:26]} 18... Rfd8 {[%clk 1:19:24]} 19. Rad1 {[%clk
1:18:27]} 19... Qa5 {[%clk 1:18:29]} 20. Bf3 {[%clk 1:10:35]} 20... Ne8 {[%clk
1:12:53]} 21. Bg4 {[%clk 0:58:01]} 21... Bf6 {[%clk 1:11:14]} 22. Kg2 {[%clk
0:57:20]} 22... Nc7 {[%clk 1:02:39]} 23. f4 {[%clk 0:52:13]} 23... Ne8 {[%clk
0:48:57]} 24. h4 {[%clk 0:44:50]} 24... Rc7 {[%clk 0:35:26]} 25. a4 {[%clk
0:38:02]} 25... b5 {[%clk 0:32:25]} 26. Bd2 {[%clk 0:37:58]} 26... b4 {[%clk
0:30:54]} 27. Be3 {[%clk 0:34:46]} 27... Nd6 {[%clk 0:30:35]} 28. Bf2 {[%clk
0:31:31]} 28... Nf5 {[%clk 0:28:16]} 29. Bf3 {[%clk 0:28:43]} 29... Rcc8 {[%clk
0:19:17]} 30. Qe1 {[%clk 0:27:09]} 30... Qb6 {[%clk 0:12:45]} 31. c5 {[%clk
0:26:55]} 31... Qb8 {[%clk 0:12:24]} 32. g4 {[%clk 0:25:53]} 32... Ne7 {[%clk
0:12:04]} 33. g5 {[%clk 0:25:46]} 33... Qxf4 {[%clk 0:12:11]} 34. Bg3 {[%clk
0:25:22]} 34... Qf5 {[%clk 0:12:36]} 35. gxf6 {[%clk 0:25:12]} 35... gxf6 {[%clk
0:12:53]} 36. Bd6 {[%clk 0:24:27]} 36... Nd5 {[%clk 0:13:10]} 37. Qe4 {[%clk
0:23:21]} 37... Qxe4 {[%clk 0:11:15]} 38. Bxe4 {[%clk 0:23:21]} 38... Nc3 {[%clk
0:11:35]} 39. Re1 {[%clk 0:23:35]} 39... f5 {[%clk 0:12:00]} 40. Bf3 {[%clk
0:24:00]} 40... Kh7 {[%clk 0:12:11]} 41. Kg3 {[%clk 0:23:52]} 41... Re8 {[%clk
0:11:22]} 42. Rde3 {[%clk 0:22:54]} 42... Kg7 {[%clk 0:11:18]} 43. Bf4 {[%clk
0:21:53]} 43... Nd5 {[%clk 0:10:03]} 44. Bxd5 {[%clk 0:22:09]} 44... cxd5 {[%clk
0:10:28]} 45. Rh1 {[%clk 0:21:39]} 45... Rh8 {[%clk 0:10:39]} 46. h5 {[%clk
0:21:42]} 46... gxh5 {[%clk 0:10:53]} 47. Kf2 {[%clk 0:21:30]} 47... Rc6 {[%clk
0:10:22]} 48. Rg3+ {[%clk 0:21:38]} 48... Kf8 {[%clk 0:10:43]} 49. Bd6+ {[%clk
0:22:04]} 49... Ke8 {[%clk 0:11:07]} 50. Rgh3 {[%clk 0:22:17]} 50... f6 {[%clk
0:10:38]} 51. Rxh5 {[%clk 0:22:40]} 51... Rxh5 {[%clk 0:10:58]} 52. Rxh5 {[%clk
0:23:06]} 52... Kf7 {[%clk 0:11:04]} 53. Rh7+ {[%clk 0:22:35]} 53... Kg6 {[%clk
0:11:26]} 54. Re7 {[%clk 0:22:59]} 54... f4 {[%clk 0:11:43]} 55. Rxe6 {[%clk
0:23:25]} 55... Kf5 {[%clk 0:12:08]} 56. Re8 {[%clk 0:23:47]} 56... a5 {[%clk
0:12:27]} 57. Kf3 {[%clk 0:23:59]} 57... Ra6 {[%clk 0:12:45]} 58. Rf8 {[%clk
0:24:21]} 58... Ra7 {[%clk 0:13:03]} 59. c6 {[%clk 0:24:38]} 59... Ke6 {[%clk
0:12:55]} 60. c7 {[%clk 0:25:02]} 1-0

[Variant "Standard"]
[Site "Europe Echecs"]

[Event "Championnat du monde jeunes U10"]
[Date "2024.11.26"]
[White "Nguyen Quang Anh"]
[Black "Anand, Tsogtbileg"]
[WhiteElo "1889"]
[BlackElo "1974"]
[Round "11.3"]
[Result "1-0"]
[TimeControl "5400+30"]

1. d4 {[%clk 1:30:56]} 1... e6 {[%clk 1:26:00]} 2. c4 {[%clk 1:31:00]} 2... Nf6
{[%clk 1:26:25]} 3. Nc3 {[%clk 1:31:02]} 3... Bb4 {[%clk 1:26:46]} 4. f3 {[%clk
1:30:04]} 4... c5 {[%clk 1:27:11]} 5. d5 {[%clk 1:30:05]} 5... O-O {[%clk
1:26:08]} 6. Bg5 {[%clk 1:25:44]} 6... h6 {[%clk 1:17:59]} 7. Bh4 {[%clk
1:24:48]} 7... d6 {[%clk 1:13:44]} 8. e4 {[%clk 1:22:11]} 8... e5 {[%clk
1:10:05]} 9. Bd3 {[%clk 1:18:42]} 9... Nbd7 {[%clk 1:02:18]} 10. Ne2 {[%clk
1:16:11]} 10... Re8 {[%clk 1:01:37]} 11. O-O {[%clk 1:15:40]} 11... g5 {[%clk
1:00:25]} 12. Bf2 {[%clk 1:10:49]} 12... Nf8 {[%clk 0:59:59]} 13. Be3 {[%clk
1:07:39]} 13... Ng6 {[%clk 0:58:38]} 14. g3 {[%clk 1:02:33]} 14... Nh5 {[%clk
0:55:09]} 15. Qd2 {[%clk 0:53:17]} 15... Ng7 {[%clk 0:48:10]} 16. a3 {[%clk
0:46:14]} 16... Ba5 {[%clk 0:44:15]} 17. Rab1 {[%clk 0:45:25]} 17... Bc7 {[%clk
0:43:53]} 18. b4 {[%clk 0:42:57]} 18... b6 {[%clk 0:44:02]} 19. bxc5 {[%clk
0:42:50]} 19... bxc5 {[%clk 0:44:24]} 20. f4 {[%clk 0:39:15]} 20... f6 {[%clk
0:37:31]} 21. f5 {[%clk 0:35:30]} 21... Nf8 {[%clk 0:37:50]} 22. Bc2 {[%clk
0:34:43]} 22... Ba5 {[%clk 0:34:18]} 23. Ba4 {[%clk 0:33:38]} 23... Bd7 {[%clk
0:34:23]} 24. Qc2 {[%clk 0:33:53]} 24... Bb6 {[%clk 0:29:33]} 25. Bc6 {[%clk
0:33:14]} 25... Rb8 {[%clk 0:27:26]} 26. Qa4 {[%clk 0:32:23]} 26... Re7 {[%clk
0:24:49]} 27. Rb2 {[%clk 0:28:17]} 27... Ne8 {[%clk 0:23:55]} 28. Rfb1 {[%clk
0:27:40]} 28... Nc7 {[%clk 0:23:35]} 29. Kg2 {[%clk 0:27:10]} 29... Qc8 {[%clk
0:21:19]} 30. Bxc5 {[%clk 0:24:10]} 30... dxc5 {[%clk 0:15:56]} 31. d6 {[%clk
0:24:26]} 31... Rg7 {[%clk 0:15:30]} 32. Bxd7 {[%clk 0:23:51]} 32... Nxd7 {[%clk
0:14:26]} 33. dxc7 {[%clk 0:24:10]} 33... Qxc7 {[%clk 0:14:05]} 34. Nd5 {[%clk
0:23:54]} 34... Qc8 {[%clk 0:14:08]} 35. g4 {[%clk 0:21:50]} 35... h5 {[%clk
0:12:58]} 36. gxh5 {[%clk 0:21:22]} 36... Rh7 {[%clk 0:13:05]} 37. Ng3 {[%clk
0:21:32]} 37... Kh8 {[%clk 0:12:50]} 38. Rd1 {[%clk 0:20:30]} 38... Bd8 {[%clk
0:12:17]} 39. Rbd2 {[%clk 0:20:21]} 39... Rb7 {[%clk 0:10:53]} 40. Qa6 {[%clk
0:20:06]} 40... Qb8 {[%clk 0:11:04]} 41. Qe6 {[%clk 0:19:40]} 41... Nf8 {[%clk
0:11:10]} 42. Qc6 {[%clk 0:19:17]} 42... Rhf7 {[%clk 0:10:01]} 43. Qxc5 {[%clk
0:18:55]} 43... Nd7 {[%clk 0:10:30]} 44. Qc6 {[%clk 0:18:28]} 44... Nb6 {[%clk
0:11:00]} 45. Qe8+ {[%clk 0:16:47]} 45... Kh7 {[%clk 0:11:06]} 46. Ne3 {[%clk
0:16:46]} 46... Rbe7 {[%clk 0:10:27]} 47. Qxd8 Qxd8 48. Rxd8 {[%clk 0:17:22]}
48... Rd7 {[%clk 0:11:27]} 49. R1xd7 {[%clk 0:17:21]} 49... Rxd7 {[%clk
0:11:52]} 50. Rxd7+ {[%clk 0:17:40]} 50... Nxd7 {[%clk 0:12:22]} 51. Kf3 {[%clk
0:17:54]} 51... Nc5 {[%clk 0:12:47]} 52. Nd5 {[%clk 0:18:12]} 52... Kg7 {[%clk
0:13:13]} 53. h6+ {[%clk 0:18:31]} 53... Kxh6 {[%clk 0:13:39]} 54. Nxf6 {[%clk
0:18:52]} 54... Kg7 {[%clk 0:14:09]} 55. Ng4 {[%clk 0:19:05]} 55... Nd7 {[%clk
0:14:35]} 56. f6+ {[%clk 0:19:26]} 56... Kg6 {[%clk 0:15:02]} 57. Nf5 {[%clk
0:19:42]} 57... a5 {[%clk 0:15:28]} 58. Nd6 {[%clk 0:20:02]} 58... Nc5 59. f7
{[%clk 0:20:19]} 59... Kg7 {[%clk 0:16:14]} 1-0

[Variant "Standard"]
[Site "Europe Echecs"]

[Event "Championnat du monde jeunes U10"]
[Date "2024.11.26"]
[White "Zuo, Junyu"]
[Black "Ling, Chenxuan"]
[WhiteElo "2120"]
[BlackElo "1967"]
[Round "11.4"]
[Result "0-1"]
[TimeControl "5400+30"]

1. e4 {[%clk 1:30:51]} 1... e6 {[%clk 1:30:43]} 2. d4 {[%clk 1:30:43]} 2... d5
{[%clk 1:31:09]} 3. e5 {[%clk 1:30:36]} 3... c5 {[%clk 1:31:34]} 4. c3 {[%clk
1:30:20]} 4... Nc6 {[%clk 1:31:58]} 5. Nf3 {[%clk 1:30:28]} 5... Bd7 {[%clk
1:32:23]} 6. a3 {[%clk 1:30:23]} 6... c4 {[%clk 1:32:11]} 7. Nbd2 {[%clk
1:30:27]} 7... Nge7 {[%clk 1:32:03]} 8. Be2 {[%clk 1:30:23]} 8... Nf5 {[%clk
1:27:54]} 9. O-O {[%clk 1:29:55]} 9... Be7 {[%clk 1:27:51]} 10. Re1 {[%clk
1:27:24]} 10... O-O {[%clk 1:27:06]} 11. Nf1 {[%clk 1:26:29]} 11... Na5 {[%clk
1:25:41]} 12. Bf4 {[%clk 1:22:40]} 12... Nb3 {[%clk 1:24:18]} 13. Rb1 {[%clk
1:22:43]} 13... a5 {[%clk 1:23:15]} 14. N1d2 {[%clk 1:22:01]} 14... Ba4 {[%clk
1:21:14]} 15. Nxb3 {[%clk 1:19:45]} 15... Bxb3 {[%clk 1:21:31]} 16. Qd2 {[%clk
1:18:14]} 16... b5 {[%clk 1:21:08]} 17. Bg5 {[%clk 1:17:06]} 17... Bxg5 {[%clk
1:19:34]} 18. Nxg5 {[%clk 1:15:51]} 18... b4 {[%clk 1:19:47]} 19. g3 {[%clk
1:10:23]} 19... Rb8 {[%clk 1:17:23]} 20. h4 {[%clk 1:09:13]} 20... Ne7 {[%clk
1:14:44]} 21. Qf4 {[%clk 1:05:44]} 21... h6 {[%clk 1:11:14]} 22. Nf3 {[%clk
1:02:16]} 22... Bc2 {[%clk 1:06:44]} 23. Rbc1 {[%clk 1:02:16]} 23... Be4 {[%clk
1:06:44]} 24. Nh2 {[%clk 0:55:18]} 24... bxa3 {[%clk 1:05:07]} 25. bxa3 {[%clk
0:55:11]} 25... Rb2 {[%clk 1:03:31]} 26. Bxc4 {[%clk 0:50:46]} 26... f5 {[%clk
1:02:07]} 27. Re2 {[%clk 0:46:33]} 27... Ng6 {[%clk 0:59:36]} 28. Qe3 {[%clk
0:46:30]} 28... f4 {[%clk 0:56:30]} 29. gxf4 {[%clk 0:46:27]} 29... Rxe2 {[%clk
0:55:28]} 30. Bxe2 {[%clk 0:45:24]} 30... Nxf4 {[%clk 0:55:45]} 31. Bf1 {[%clk
0:37:29]} 31... Qxh4 {[%clk 0:53:46]} 32. Qg3 {[%clk 0:37:24]} 32... Qh5 {[%clk
0:46:59]} 33. Qg4 {[%clk 0:35:55]} 33... Qe8 {[%clk 0:46:47]} 34. f3 {[%clk
0:34:58]} 34... Rf5 {[%clk 0:44:22]} 35. Kh1 {[%clk 0:31:35]} 35... Bd3 {[%clk
0:43:48]} 36. Bxd3 {[%clk 0:31:31]} 36... Nxd3 {[%clk 0:44:12]} 37. Rf1 {[%clk
0:31:29]} 37... Qb5 {[%clk 0:43:08]} 38. Qg2 {[%clk 0:28:07]} 38... Nf4 {[%clk
0:41:01]} 39. Qc2 {[%clk 0:27:27]} 39... Qc4 {[%clk 0:38:28]} 40. Re1 {[%clk
0:25:12]} 40... Qc7 {[%clk 0:33:27]} 41. Rc1 {[%clk 0:23:39]} 41... Rg5 {[%clk
0:32:08]} 42. Rg1 {[%clk 0:22:01]} 42... Rxg1+ {[%clk 0:32:24]} 43. Kxg1 {[%clk
0:22:08]} 43... Qxc3 {[%clk 0:32:34]} 44. Qxc3 {[%clk 0:21:11]} 44... Ne2+
{[%clk 0:33:01]} 45. Kf2 {[%clk 0:21:35]} 45... Nxc3 {[%clk 0:33:27]} 46. Ke3
{[%clk 0:21:54]} 46... Nb5 {[%clk 0:33:53]} 47. Kd3 {[%clk 0:22:05]} 47... Nxa3
{[%clk 0:34:14]} 48. Kc3 {[%clk 0:22:32]} 48... Nb5+ {[%clk 0:34:34]} 49. Kd3
{[%clk 0:23:00]} 49... a4 {[%clk 0:34:50]} 50. Ng4 {[%clk 0:23:25]} 50... h5
{[%clk 0:35:03]} 51. Ne3 {[%clk 0:23:32]} 51... a3 {[%clk 0:35:25]} 52. Nc2
{[%clk 0:23:53]} 52... a2 {[%clk 0:35:42]} 53. Na1 {[%clk 0:23:30]} 53... h4
{[%clk 0:36:07]} 54. Ke3 {[%clk 0:23:53]} 54... Nxd4 {[%clk 0:36:25]} 55. Kxd4
{[%clk 0:24:12]} 55... h3 {[%clk 0:36:50]} 56. Ke3 {[%clk 0:24:23]} 56... h2
{[%clk 0:37:13]} 57. Kd4 {[%clk 0:24:47]} 57... h1=Q {[%clk 0:37:37]} 58. Nb3
{[%clk 0:25:13]} 58... Qd1+ {[%clk 0:37:54]} 59. Kc3 {[%clk 0:25:40]} 59...
Qxb3+ {[%clk 0:38:15]} 60. Kxb3 {[%clk 0:26:05]} 60... a1=Q {[%clk 0:38:38]} 0-1

[Variant "Standard"]
[Site "Europe Echecs"]

[Event "Championnat du monde jeunes U10"]
[Date "2024.11.26"]
[White "Advik Amit Agrawal"]
[Black "Annapureddy, Rheyansh Reddy"]
[WhiteElo "1982"]
[BlackElo "2122"]
[Round "11.5"]
[Result "1/2-1/2"]
[TimeControl "5400+30"]

1. e4 {[%clk 1:30:29]} 1... c5 {[%clk 1:30:55]} 2. Nf3 {[%clk 1:30:36]} 2... Nc6
{[%clk 1:31:18]} 3. Bb5 {[%clk 1:31:00]} 3... e5 {[%clk 1:31:30]} 4. O-O {[%clk
1:31:19]} 4... Bd6 {[%clk 1:31:54]} 5. c3 {[%clk 1:31:18]} 5... a6 {[%clk
1:31:29]} 6. Ba4 {[%clk 1:31:10]} 6... b5 {[%clk 1:31:33]} 7. Bc2 {[%clk
1:31:24]} 7... Nge7 {[%clk 1:29:51]} 8. a4 {[%clk 1:31:32]} 8... b4 {[%clk
1:28:51]} 9. Re1 {[%clk 1:31:03]} 9... O-O {[%clk 1:27:55]} 10. d4 {[%clk
1:31:19]} 10... bxc3 {[%clk 1:25:28]} 11. dxe5 {[%clk 1:30:58]} 11... cxb2
{[%clk 1:25:44]} 12. Bxb2 {[%clk 1:31:16]} 12... Bc7 {[%clk 1:25:49]} 13. Nbd2
{[%clk 1:31:20]} 13... d6 {[%clk 1:25:31]} 14. exd6 {[%clk 1:31:10]} 14... Qxd6
{[%clk 1:20:39]} 15. e5 {[%clk 1:28:39]} 15... Qd8 {[%clk 1:13:06]} 16. Ba3
{[%clk 1:18:15]} 16... Nb4 {[%clk 1:00:54]} 17. Be4 {[%clk 1:17:48]} 17... Rb8
{[%clk 0:57:03]} 18. Rc1 {[%clk 1:16:10]} 18... a5 {[%clk 0:51:46]} 19. Rxc5
{[%clk 1:04:40]} 19... Bb6 {[%clk 0:43:14]} 20. Rc4 {[%clk 1:03:37]} 20... Ng6
{[%clk 0:42:10]} 21. Rc3 {[%clk 0:54:23]} 21... Nf4 {[%clk 0:34:55]} 22. Qa1
{[%clk 0:41:48]} 22... Be6 {[%clk 0:25:39]} 23. Nc4 {[%clk 0:30:21]} 23... Ba7
{[%clk 0:20:06]} 24. Ne3 {[%clk 0:27:16]} 24... Bd4 {[%clk 0:14:26]} 25. Nxd4
{[%clk 0:27:17]} 25... Qxd4 {[%clk 0:14:50]} 26. Nf5 {[%clk 0:22:09]} 26... Bxf5
{[%clk 0:13:16]} 27. Bxf5 {[%clk 0:22:27]} 27... Rfd8 {[%clk 0:09:01]} 28. Rce3
{[%clk 0:11:59]} 28... Qxa1 {[%clk 0:03:54]} 29. Rxa1 {[%clk 0:12:15]} 29...
Nbd5 {[%clk 0:03:11]} 30. Ree1 {[%clk 0:12:17]} 30... g6 {[%clk 0:03:04]} 31.
Be4 {[%clk 0:12:00]} 31... Nc3 {[%clk 0:03:19]} 32. Bd6 {[%clk 0:11:21]} 32...
Rb2 {[%clk 0:02:56]} 33. Bf3 {[%clk 0:11:12]} 33... Rc8 {[%clk 0:01:53]} 34. h4
{[%clk 0:09:45]} 34... Rc4 {[%clk 0:01:50]} 35. Be7 {[%clk 0:09:00]} 35... Rb8
{[%clk 0:01:05]} 36. Ra3 {[%clk 0:07:09]} 36... Nfd5 {[%clk 0:00:52]} 37. Bd6
{[%clk 0:07:11]} 37... Rbc8 {[%clk 0:01:10]} 38. Bxd5 {[%clk 0:06:52]} 38...
Nxd5 {[%clk 0:01:34]} 39. g3 {[%clk 0:07:10]} 39... Nc3 {[%clk 0:01:10]} 40.
Rea1 {[%clk 0:07:12]} 40... Ne4 {[%clk 0:00:57]} 41. Re3 {[%clk 0:06:54]} 41...
Nxd6 {[%clk 0:00:40]} 42. exd6 {[%clk 0:07:16]} 42... Rd4 {[%clk 0:00:57]} 43.
Re5 {[%clk 0:07:35]} 43... Ra8 {[%clk 0:01:17]} 44. Rae1 {[%clk 0:06:39]} 44...
Kf8 {[%clk 0:00:38]} 45. Rc5 {[%clk 0:06:46]} 45... Rxd6 {[%clk 0:00:57]} 46.
Ree5 {[%clk 0:07:11]} 46... Rd4 {[%clk 0:00:40]} 47. Rxa5 {[%clk 0:07:30]} 47...
Rxa4 {[%clk 0:01:06]} 1/2-1/2

[Variant "Standard"]
[Site "Europe Echecs"]

[Event "Championnat du monde jeunes U10"]
[Date "2024.11.26"]
[White "Dayal, Samar"]
[Black "Zhu, Linxi"]
[WhiteElo "1818"]
[BlackElo "2100"]
[Round "11.6"]
[Result "0-1"]
[TimeControl "5400+30"]

1. e4 {[%clk 1:30:59]} 1... c5 {[%clk 1:30:54]} 2. Nf3 {[%clk 1:31:28]} 2... d6
{[%clk 1:31:17]} 3. d4 {[%clk 1:31:56]} 3... cxd4 {[%clk 1:31:42]} 4. Nxd4
{[%clk 1:32:24]} 4... Nf6 {[%clk 1:32:01]} 5. Nc3 {[%clk 1:32:53]} 5... a6
{[%clk 1:32:31]} 6. Be3 {[%clk 1:33:22]} 6... e5 {[%clk 1:32:50]} 7. Nb3 {[%clk
1:33:50]} 7... Be7 {[%clk 1:33:16]} 8. f3 {[%clk 1:34:16]} 8... Be6 {[%clk
1:33:43]} 9. Qd2 {[%clk 1:34:42]} 9... h5 {[%clk 1:34:13]} 10. O-O-O {[%clk
1:35:01]} 10... Nbd7 {[%clk 1:34:21]} 11. Kb1 {[%clk 1:35:24]} 11... Rc8 {[%clk
1:34:40]} 12. Nd5 {[%clk 1:35:00]} 12... Nxd5 {[%clk 1:33:42]} 13. exd5 Bf5 14.
Bd3 {[%clk 1:35:57]} 14... Bxd3 {[%clk 1:34:29]} 15. Qxd3 {[%clk 1:36:25]} 15...
Bg5 {[%clk 1:34:52]} 16. Bf2 {[%clk 1:34:38]} 16... Nf6 {[%clk 1:31:26]} 17. h4
{[%clk 1:33:01]} 17... Bh6 {[%clk 1:31:52]} 18. Rdg1 {[%clk 1:33:02]} 18... Qd7
{[%clk 1:31:17]} 19. Bb6 {[%clk 1:16:16]} 19... O-O {[%clk 1:30:21]} 20. c4
{[%clk 1:16:01]} 20... Rfe8 {[%clk 1:30:26]} 21. Re1 {[%clk 1:05:25]} 21... g6
{[%clk 1:24:50]} 22. Na5 {[%clk 1:03:21]} 22... Re7 {[%clk 1:24:08]} 23. Re2
{[%clk 1:01:29]} 23... Bf4 {[%clk 1:20:49]} 24. Bf2 {[%clk 0:51:45]} 24... Qc7
{[%clk 1:19:17]} 25. Qa3 {[%clk 0:48:33]} 25... Nxd5 {[%clk 1:14:29]} 26. g3
{[%clk 0:47:32]} 26... Bh6 {[%clk 1:14:29]} 27. Rd1 {[%clk 0:48:01]} 27... b6
{[%clk 1:11:12]} 28. Rxd5 {[%clk 0:48:22]} 28... bxa5 29. b3 {[%clk 0:48:17]}
29... Qd7 {[%clk 1:09:35]} 30. Qxd6 {[%clk 0:24:13]} 30... Qf5+ {[%clk 1:09:49]}
31. Rd3 {[%clk 0:24:35]} 31... Rcc7 {[%clk 1:08:37]} 32. Qd8+ {[%clk 0:23:03]}
32... Kh7 {[%clk 1:08:38]} 33. Kb2 {[%clk 0:22:34]} 33... Bg7 {[%clk 1:08:21]}
34. Ka3 {[%clk 0:16:17]} 34... Red7 {[%clk 1:05:12]} 35. Rxd7 {[%clk 0:16:36]}
35... Rxd7 {[%clk 1:05:41]} 36. Qa8 {[%clk 0:16:36]} 36... Qb1 {[%clk 1:01:20]}
37. Ka4 {[%clk 0:12:15]} 37... Qd1 {[%clk 1:00:43]} 38. Qe4 {[%clk 0:11:10]}
38... Rd2 {[%clk 1:00:37]} 39. Rxd2 {[%clk 0:11:02]} 39... Qxd2 {[%clk 1:01:01]}
40. a3 {[%clk 0:07:43]} 40... Qxf2 {[%clk 1:01:22]} 41. Kxa5 {[%clk 0:08:06]}
41... Qd4 {[%clk 0:55:36]} 42. Kxa6 {[%clk 0:05:03]} 42... f5 {[%clk 0:53:48]}
43. Qc2 {[%clk 0:04:19]} 43... e4 {[%clk 0:54:02]} 44. fxe4 {[%clk 0:04:21]}
44... fxe4 {[%clk 0:54:25]} 45. c5 {[%clk 0:04:46]} 45... Qd3+ {[%clk 0:54:51]}
46. Qxd3 {[%clk 0:03:44]} 46... exd3 {[%clk 0:55:02]} 47. c6 {[%clk 0:04:13]}
47... Be5 {[%clk 0:55:31]} 48. b4 {[%clk 0:04:31]} 48... d2 {[%clk 0:55:59]} 49.
b5 d1=Q {[%clk 0:56:15]} 50. b6 {[%clk 0:05:29]} 50... Qa4+ {[%clk 0:54:54]} 51.
Kb7 {[%clk 0:05:58]} 51... Qe4 {[%clk 0:55:15]} 52. a4 {[%clk 0:06:20]} 52...
Qxa4 {[%clk 0:55:39]} 53. c7 {[%clk 0:06:48]} 53... Qd7 {[%clk 0:55:57]} 54. Kb8
{[%clk 0:07:16]} 54... Bxg3 {[%clk 0:56:10]} 55. Ka8 {[%clk 0:07:17]} 55... Bxc7
{[%clk 0:56:29]} 56. bxc7 {[%clk 0:07:42]} 56... Qc8+ {[%clk 0:56:56]} 57. Ka7
{[%clk 0:08:06]} 57... Qxc7+ {[%clk 0:57:23]} 0-1

[Variant "Standard"]
[Site "Europe Echecs"]

[Event "Championnat du monde jeunes U10"]
[Date "2024.11.26"]
[White "Bolashakov, Nurali"]
[Black "Zhang, Junyi"]
[WhiteElo "2005"]
[BlackElo "2061"]
[Round "11.7"]
[Result "1-0"]
[TimeControl "5400+30"]

1. e4 {[%clk 1:30:56]} 1... c5 {[%clk 1:30:58]} 2. Nf3 {[%clk 1:31:16]} 2... e6
{[%clk 1:31:24]} 3. d4 {[%clk 1:31:40]} 3... cxd4 {[%clk 1:31:53]} 4. Nxd4
{[%clk 1:31:52]} 4... Nf6 {[%clk 1:32:19]} 5. Nc3 {[%clk 1:32:10]} 5... Nc6
{[%clk 1:32:48]} 6. Ndb5 {[%clk 1:31:57]} 6... Bb4 {[%clk 1:31:59]} 7. a3 {[%clk
1:31:42]} 7... Bxc3+ {[%clk 1:32:09]} 8. Nxc3 {[%clk 1:32:03]} 8... d5 {[%clk
1:32:32]} 9. exd5 {[%clk 1:31:12]} 9... exd5 {[%clk 1:32:40]} 10. Bd3 {[%clk
1:30:40]} 10... O-O {[%clk 1:32:52]} 11. O-O {[%clk 1:31:04]} 11... Bg4 {[%clk
1:33:09]} 12. f3 {[%clk 1:30:43]} 12... Be6 {[%clk 1:30:53]} 13. Bg5 {[%clk
1:28:45]} 13... h6 {[%clk 1:28:21]} 14. Bh4 {[%clk 1:27:49]} 14... Ne5 {[%clk
1:16:10]} 15. Re1 {[%clk 1:04:17]} 15... Nxd3 {[%clk 1:07:27]} 16. Qxd3 {[%clk
1:04:45]} 16... Rc8 {[%clk 1:07:30]} 17. Bf2 {[%clk 0:59:43]} 17... Qa5 {[%clk
1:04:50]} 18. Bd4 {[%clk 0:57:58]} 18... Nd7 {[%clk 1:03:38]} 19. f4 {[%clk
0:55:01]} 19... Qa6 {[%clk 0:46:57]} 20. Qxa6 {[%clk 0:43:11]} 20... bxa6 {[%clk
0:47:18]} 21. f5 {[%clk 0:43:37]} 21... Bxf5 {[%clk 0:40:22]} 22. Nxd5 {[%clk
0:43:36]} 22... Rfe8 {[%clk 0:40:43]} 23. Ne7+ {[%clk 0:44:02]} 23... Rxe7
{[%clk 0:41:11]} 24. Rxe7 {[%clk 0:44:25]} 24... Be6 {[%clk 0:41:35]} 25. Bc3
{[%clk 0:44:04]} 25... Rb8 {[%clk 0:40:09]} 26. Rd1 {[%clk 0:44:17]} 26... Rb7
{[%clk 0:40:26]} 27. Re8+ {[%clk 0:44:34]} 27... Kh7 {[%clk 0:40:43]} 28. Rd6
{[%clk 0:39:41]} 28... Nc5 {[%clk 0:41:05]} 29. Bd4 {[%clk 0:39:39]} 29... Ne4
{[%clk 0:41:29]} 30. Rxa6 {[%clk 0:39:59]} 30... Rc7 {[%clk 0:41:49]} 31. c3
{[%clk 0:40:15]} 31... Rb7 {[%clk 0:42:15]} 32. b4 {[%clk 0:40:37]} 32... Nf6
{[%clk 0:42:23]} 33. Rd8 {[%clk 0:40:03]} 33... Rb5 {[%clk 0:42:40]} 34. Bxf6
{[%clk 0:39:39]} 34... gxf6 {[%clk 0:43:02]} 35. Rxa7 {[%clk 0:40:02]} 35... Rf5
{[%clk 0:43:27]} 36. Ra5 {[%clk 0:40:02]} 36... Rf4 {[%clk 0:43:50]} 37. Rd4
{[%clk 0:40:26]} 1-0

[Variant "Standard"]
[Site "Europe Echecs"]